[Event "26th Triest Festival 2024"]
[Site "Triest"]
[Date "2024.09.02"]
[Round "2.1"]
[White "Gong, Qianyun"]
[Black "Bosiocic, Marin"]
[Result "0-1"]
[Annotator "TA"]
[ECO "C41"]
[WhiteElo "2250"]
[BlackElo "2555"]
[PlyCount "114"]
[EventDate "2024.09.02"]
[EventType "swiss"]
[EventCountry "ITA"]
[SourceTitle "playchess.com"]
[Source "ChessBase"]
[SourceQuality "1"]
[TimeControl "5400+30"]

{[%evp 22,114,9,0,0,-20,-20,-13,-7,-9,-3,0,0,-13,0,-21,-13,0,0,0,-7,-24,0,0,0,-21,-21,-157,-148,-128,-124,-193,-167,-191,-194,-179,-193,-175,-135,-162,-156,-146,-40,-31,0,-160,-149,-141,-99,-88,-18,-30,0,-366,-72,-249,-12,-10,0,0,0,0,0,-48,-17,-159,-164,-156,-162,-159,-168,-218,-141,-216,-157,-167,-166,-169,-168,-172,-172,-162,-154,-641,-631,-779,-817,-851,-835,-837,-813,-1193,-1192,-29998,-1039]} 1. e4 {[%emt 0:00:41]} e5 {[%emt 0:00:38]} 2. Nf3 {[%emt 0:00:31]} d6 {[%emt 0:00:11]} 3. d4 {[%emt 0:00:46]} exd4 {[%emt 0:00:07]} 4. Nxd4 {[%emt 0:00:05]} Nf6 {[%emt 0:00:08]} 5. Nc3 {[%emt 0:00:05]} Be7 {[%emt 0:00:08]} 6. Be2 {[%emt 0:01:23]} O-O {[%emt 0:00:16]} 7. O-O {[%emt 0:00:16]} Re8 {[%emt 0:00:09]} 8. f4 {[%emt 0:01:56]} Bf8 {[%emt 0:00:19]} 9. Bf3 {[%emt 0:00:05]} c5 {[%emt 0:00:08]} 10. Nde2 {[%emt 0:02:32]} Nc6 {[%emt 0:01:24]} 11. h3 {[%emt 0:01:44]} Bd7 {[%emt 0:01:25]} 12. Be3 {[%emt 0:08:00]} b5 {[%emt 0:07:17]} 13. e5 {[%emt 0:02:32]} (13. Nxb5 Nxe4 14. Na3 Rb8 $17) 13... dxe5 {[%emt 0:00:31]} 14. fxe5 {[%emt 0:00:08]} Nxe5 {[%emt 0:02:57]} 15. Bxa8 {[%emt 0:13:20]} Qxa8 {[%emt 0:00:10]} 16. Bg5 {[%emt 0:00:51]} Ne4 {[%emt 0:01:41]} 17. Nxe4 {[%emt 0:03:06]} Qxe4 {[%emt 0:00:13]} 18. Ng3 {[%emt 0:00:39]} Qg6 {[%emt 0:00:11]} 19. Bf4 {[%emt 0:01:54]} Bc6 {[%emt 0:01:18]} 20. Rf2 {[%emt 0:06:00]} c4 {[%emt 0:02:09]} 21. Kh2 {[%emt 0:00:43]} Bc5 {[%emt 0:02:29]} 22. Re2 {[%emt 0:05:12]} f6 {[%emt 0:00:54]} 23. Rd2 {[%emt 0:01:48]} Bb6 {[%emt 0:04:28]} 24. Qh5 {[%emt 0:03:10]} (24. a4 $11) 24... Qxh5 {[%emt 0:01:23]} 25. Nxh5 {[%emt 0:00:04]} c3 $1 {[%emt 0:00:33]} 26. bxc3 {[%emt 0:02:47]} (26. Rd6 $17 {was called for.} cxb2 27. Rb1) 26... Nc4 $19 {[%emt 0:01:51]} 27. Rd3 {[%emt 0:00:16]} Kf7 $1 {[%emt 0:06:07]} (27... Re2 28. Rg3 g6 29. Nxf6+ Kg7 30. Ng4 $15) 28. Rad1 {[%emt 0:17:58]} g6 {[%emt 0:01:37]} (28... Nb2 29. Rd7+ Bxd7 30. Rxd7+ Re7 31. Rxe7+ Kxe7 32. Nxg7 $11) 29. Ng3 {[%emt 0:01:06]} g5 {[%emt 0:00:18]} 30. Bc1 {[%emt 0:01:46]} Kg6 {[%emt 0:01:19]} 31. Rf1 {[%emt 0:12:11]} Re6 {[%emt 0:09:25]} (31... Re5 $17 32. Rdd1 Bc7) 32. h4 $1 $15 {[%emt 0:01:27]} Bc7 {[%emt 0:10:25]} 33. Kh1 $2 {[%emt 0:01:16]} (33. hxg5 fxg5 34. Kh3 Bd6 35. Rxd6 Nxd6 $17 (35... Rxd6 36. Nf5 $17)) (33. h5+ $11 Kg7 34. Kh3) 33... h5 $1 $17 {[%emt 0:00:51]} 34. Kg1 {[%emt 0:04:24]} Ne5 {[%emt 0:03:38]} (34... gxh4 35. Nf5 $17) 35. Rd2 {[%emt 0:01:31]} b4 {[%emt 0:06:50]} (35... gxh4 36. Nf5 $11) (35... Bb6+ $17 36. Kh1 gxh4) 36. cxb4 $11 {[%emt 0:02:01]} Bb5 {[%emt 0:00:32]} 37. hxg5 $2 {[%emt 0:02:02][%mdl 8192] [#]} (37. Ne2 $11 {and White stays safe.}) 37... Ng4 $2 {[%emt 0:02:14]} (37... Bb6+ $1 $19 {and Black stays clearly on top.} 38. Kh2 Bxf1 39. Nxf1 Ng4+ (39... Kxg5 $2 40. Rd6+ Kg6 41. Rxe6 $18) (39... fxg5 40. Rd5 $17) 40. Kh3 Re1 (40... fxg5 $2 41. Rd5 $19)) 38. Nf5 $2 {[%emt 0:00:52]} (38. c4 $2 Bxc4 $19) (38. Ne2 $17 {might work better.} Rxe2 (38... Bxe2 39. Re1 $15) 39. Rxe2 Bxe2 40. Re1) 38... Bb6+ $2 {[%emt 0:09:33]} ({Weaker is} 38... Bxf1 39. Nh4+ Kf7 (39... Kxg5 40. Rd3+ Bf4 41. Bxf4+ Kxf4 42. g3+ Ke4 43. Kxf1 $11) 40. Kxf1 Ne3+ (40... Nh2+ 41. Kg1 $16) 41. Kg1 $11) (38... Bh2+ $19 39. Kh1 Bxf1 40. Nh4+ Kf7 (40... Kxg5 $2 41. Rd3+ Bf4 42. Rd5+ Kxh4 43. Bxf4 $19) 41. g6+ Ke8) 39. Nd4 $11 {[%emt 0:00:10]} fxg5 {[%emt 0:03:03]} 40. Rdd1 {[%emt 0:01:42]} Bxf1 {[%emt 0:03:34]} 41. Kxf1 {[%emt 0:00:04]} Rf6+ {[%emt 0:00:12]} (41... Rd6 $5 42. c3 $8 Rf6+ 43. Ke1 Nf2 $11) 42. Kg1 {[%emt 0:01:14]} (42. Nf3 $11) 42... Rc6 {[%emt 0:00:26]} (42... Nf2 $5 43. Rd2 h4 $15) 43. Rd2 {[%emt 0:00:44]} (43. Kf1 $11 Bxd4 44. Rxd4) 43... Rc4 {[%emt 0:03:00]} 44. Bb2 {[%emt 0:00:23]} Rxb4 {[%emt 0:00:09]} 45. c3 {[%emt 0:00:02]} Ra4 {[%emt 0:00:06]} 46. Ba1 {[%emt 0:00:38]} (46. Bc1 $142) 46... Rc4 {[%emt 0:00:05]} 47. g3 {[%emt 0:00:40]} (47. Bb2 $17) 47... Rc5 {[%emt 0:01:31]} 48. Re2 {[%emt 0:00:32]} Ne5 {[%emt 0:01:00]} 49. Kg2 {[%emt 0:00:10] [#]} Nc4 $1 {[%emt 0:00:14]} 50. Re6+ {[%emt 0:00:36]} Kf7 {[%emt 0:00:13]} 51. Re2 {[%emt 0:00:11]} g4 {[%emt 0:00:40]} 52. Ne6 $2 {[%emt 0:01:01]} (52. Kg1 $17) 52... Rb5 $19 {[%emt 0:00:24]} 53. Nd4 {[%emt 0:01:08]} Rb1 {[%emt 0:00:15]} 54. Nc2 {[%emt 0:00:29]} Rg1+ {[%emt 0:00:16]} 55. Kh2 {[%emt 0:00:01]} Rd1 {[%emt 0:00:08]} 56. a4 {[%emt 0:00:47]} Nd2 {[%emt 0:00:17]} 57. Kg2 {[%emt 0:00:37]} Nf3 {[%emt 0:00:07]} (57... Rg1+ $142 58. Kh2 Nf3#) 0-1

[Event "26th Triest Festival 2024"]
[Site "Triest"]
[Date "2024.09.02"]
[Round "2.2"]
[White "Baklan, Vladimir"]
[Black "Chia, Yu Zhe Ashton"]
[Result "1-0"]
[Annotator "TA"]
[ECO "C70"]
[WhiteElo "2535"]
[BlackElo "2224"]
[PlyCount "85"]
[EventDate "2024.09.02"]
[EventType "swiss"]
[EventCountry "ITA"]
[SourceTitle "playchess.com"]
[Source "ChessBase"]
[SourceQuality "1"]
[TimeControl "5400+30"]

{[%evp 9,85,74,64,48,42,68,59,72,86,48,41,33,41,20,29,14,18,-8,0,0,0,0,46,43,79,108,90,98,249,257,261,244,315,316,315,199,195,224,250,247,229,235,231,232,232,243,242,243,291,300,296,296,302,304,285,297,307,283,283,266,321,317,355,407,389,420,432,431,457,409,462,434,512,509,587,595,767,767]} 1. e4 {[%emt 0:00:11]} e5 {[%emt 0:02:12]} 2. Nf3 {[%emt 0:00:04]} Nc6 {[%emt 0:00:05][%cal Bb8c6,Bc6a5,Ba5b3][%mdl 32]} 3. Bb5 {[%emt 0:00:09]} a6 {[%emt 0:01:23]} 4. Ba4 {[%emt 0:00:03]} f5 {[%emt 0:00:07]} 5. d4 {[%emt 0:09:34]} exd4 {[%emt 0:00:28]} 6. e5 {[%emt 0:00:18][%cal Oe1g1]} (6. Nxd4 Nxd4 7. Qxd4 c5 8. Qe5+ Qe7 9. Qxe7+ (9. Qxf5 b5 $17) 9... Bxe7 $11) (6. exf5 Qe7+ 7. Kf1 b5 $11) 6... b5 {[%emt 0:00:33]} 7. Bb3 {[%emt 0:00:06][%cal Oe1g1]} Na5 {[%emt 0:01:40]} 8. Nxd4 {[%emt 0:06:49] Black must now prevent 0-0. White is slightly better.} Bb7 {[%emt 0:03:12]} 9. Nxf5 {[%emt 0:03:15][%cal Bd4f5,Bf5e3,Be3g4][%mdl 32] White is more active.} Nxb3 {[%emt 0:05:02]} 10. axb3 {[%emt 0:00:57]} d6 $1 {[%emt 0:00:09]} 11. O-O {[%emt 0:06:05] Strongly threatening exd6.} dxe5 {[%emt 0:16:03]} 12. Qe2 {[%emt 0:01:32]} Qf6 {[%emt 0:00:58]} 13. Ne3 $132 {[%emt 0:00:27][%mdl 2048] White puts up resistance} O-O-O {[%emt 0:04:58]} 14. c4 {[%emt 0:06:42]} b4 {[%emt 0:05:57] Prevents Nc3.} 15. Nd2 {[%emt 0:01:22][%cal Bb1d2,Bd2f3,Bf3g5][%mdl 32]} Qc6 {[%emt 0:09:36]} (15... Ne7 $11) 16. Nf3 $1 $14 {[%emt 0:03:00][%cal Of1e1]} Qe4 {[%emt 0:06:12]} 17. Ng5 {[%emt 0:04:55]} Qg6 {[%emt 0:01:01]} 18. Ng4 {[%emt 0:06:01]} Bd6 {[%emt 0:07:21] [#] This move loses the game for Black.} (18... Qc6 $16 {might work better.} 19. f3 Nf6) 19. c5 $1 $18 {[%emt 0:07:46]} (19. Nxe5 $6 Bxe5 20. Qxe5 Rd7 $14) 19... Bxc5 {[%emt 0:02:57]} 20. Nxe5 {[%emt 0:00:09]} (20. Qxe5 Bd6 21. Qe6+ Qxe6 22. Nxe6 Rd7 $16) 20... Qf5 {[%emt 0:02:03]} 21. Nef7 {[%emt 0:01:48][%cal Of7d8] Repels Nh6. And now Nxd8! would win. A dynamic duo of knights.} Nh6 {[%emt 0:03:43][%cal Bg8h6,Bh6f5,Bf5h4][%mdl 32]} 22. Nxd8 {[%emt 0:16:05]} Rxd8 {[%emt 0:02:00][%cal Bh8d8,Bd8d5,Bd5c5][%mdl 32]} 23. Qe6+ {[%emt 0:00:09]} Kb8 {[%emt 0:00:05] [#]} 24. Qxf5 {[%emt 0:00:58]} Nxf5 {[%emt 0:00:03]} 25. Ne6 $1 {[%emt 0:00:16]} (25. Nxh7 Bb6 $16) 25... Rd5 {[%emt 0:00:03]} 26. Nxc5 {[%emt 0:03:54]} Rxc5 {[%emt 0:00:02]} 27. Rd1 {[%emt 0:01:14] Repels Nd4} Bd5 {[%emt 0:05:01]} 28. g4 {[%emt 0:03:49]} ({But not} 28. Rxa6 $6 Bxb3 29. Re1 Kb7) 28... Nh4 {[%emt 0:02:35]} 29. Be3 {[%emt 0:00:06]} Rb5 {[%emt 0:02:55]} 30. Rxa6 {[%emt 0:00:15]} Nf3+ {[%emt 0:01:08]} 31. Kg2 {[%emt 0:01:07][%cal Od1d5] Hoping for Rxd5!} Nd4+ {[%emt 0:01:41]} 32. Kg3 {[%emt 0:02:02]} Kb7 {[%emt 0:00:11] Threatens to win with ...Ne2+.} 33. Rda1 {[%emt 0:00:59]} Nxb3 {[%emt 0:01:33]} 34. Ra7+ {[%emt 0:03:26]} Kb8 {[%emt 0:00:07]} 35. Re1 {[%emt 0:02:15]} Nd2 {[%emt 0:05:09] [#]} 36. f3 $1 {[%emt 0:01:56] Inhibits Ne4+.} Nc4 {[%emt 0:06:42][%cal Oc4e3]} (36... Nb3 37. Bf2) 37. Bd4 {[%emt 0:03:20]} Nd6 {[%emt 0:00:08] Wards off Re8+} 38. Raa1 {[%emt 0:00:45]} ({Don't do} 38. Re7 Nc8 $18) 38... h5 {[%emt 0:00:48][%cal Bh7h5,Bh5h4][%mdl 32]} 39. h3 {[%emt 0:01:59]} ({And not} 39. gxh5 Nf5+ 40. Kf2 Nxd4 $17) 39... h4+ {[%emt 0:01:18]} 40. Kf2 {[%emt 0:00:22] White is clearly winning.} Nc4 {[%emt 0:00:17]} 41. Bxg7 {[%emt 0:00:25]} Bc6 {[%emt 0:01:06]} 42. Rac1 {[%emt 0:01:34]} Na5 {[%emt 0:00:32]} 43. Re7 {[%emt 0:00:24] Weighted Error Value: White=0.10 (very precise) /Black=0.22 (precise) .  Mistake:       	---       	Black=2      Inaccurate:     	White=3     	Black=1      OK:         	White=22    	Black=15     Best:        	White=2     	Black=1      Strong:       	White=3     	Black=1} 1-0

[Event "26th Triest Festival 2024"]
[Site "Triest"]
[Date "2024.09.02"]
[Round "2.3"]
[White "Skrbec, Leon"]
[Black "Tiviakov, Sergei"]
[Result "0-1"]
[Annotator "RC"]
[ECO "D03"]
[WhiteElo "2278"]
[BlackElo "2531"]
[PlyCount "144"]
[EventDate "2024.09.02"]
[EventType "swiss"]
[EventCountry "ITA"]
[SourceTitle "playchess.com"]
[Source "ChessBase"]
[SourceQuality "1"]
[TimeControl "5400+30"]

1. d4 {[%emt 0:00:48]} Nf6 {[%emt 0:00:06]} 2. Bg5 {[%emt 0:00:17]} d5 {[%emt 0:00:21]} 3. Nd2 {[%emt 0:00:52]} Nbd7 {[%emt 0:01:44]} 4. Ngf3 {[%emt 0:00:56]} e6 {[%emt 0:03:11]} 5. e3 {[%emt 0:00:06]} c5 {[%emt 0:00:51]} 6. c3 {[%emt 0:00:19]} Be7 {[%emt 0:00:39]} 7. Bd3 {[%emt 0:00:08]} Qc7 {[%emt 0:00:09]} 8. O-O {[%emt 0:01:32]} O-O {[%emt 0:00:03]} 9. Qe2 {[%emt 0:01:33]} b6 {[%emt 0:00:11]} 10. Bf4 {[%emt 0:06:27]} Bd6 {[%emt 0:00:36]} 11. Bxd6 {[%emt 0:00:07]} Qxd6 {[%emt 0:00:04]} 12. e4 {[%emt 0:00:14]} dxe4 {[%emt 0:00:18]} 13. Nxe4 {[%emt 0:00:06]} Qe7 {[%emt 0:01:47]} 14. Rfe1 {[%emt 0:07:30]} Bb7 {[%emt 0:00:15]} 15. dxc5 {[%emt 0:05:59]} Nxc5 {[%emt 0:01:18]} 16. Nxc5 {[%emt 0:00:06]} Bxf3 {[%emt 0:05:48]} 17. Qxf3 {[%emt 0:00:09]} bxc5 {[%emt 0:01:52]} 18. Rad1 {[%emt 0:02:29]} Rab8 {[%emt 0:00:16]} 19. b3 {[%emt 0:00:31]} Rfd8 {[%emt 0:00:07]} 20. h3 {[%emt 0:00:55]} g6 {[%emt 0:01:05]} 21. Bc4 {[%emt 0:06:00]} Nd7 {[%emt 0:03:23]} 22. Bf1 {[%emt 0:03:32]} Nb6 {[%emt 0:00:28]} 23. g3 {[%emt 0:01:38]} Kg7 {[%emt 0:08:34]} 24. Qf4 {[%emt 0:01:58]} Rbc8 {[%emt 0:04:04]} 25. Bg2 {[%emt 0:03:06]} Qf6 {[%emt 0:02:23]} 26. Qxf6+ {[%emt 0:04:48]} Kxf6 {[%emt 0:00:08]} 27. Bb7 {[%emt 0:00:10]} Rb8 {[%emt 0:03:23]} 28. Bf3 {[%emt 0:01:26]} c4 {[%emt 0:01:04]} 29. Be2 {[%emt 0:00:44]} Rxd1 {[%emt 0:07:54]} 30. Bxd1 {[%emt 0:13:02]} Rc8 {[%emt 0:02:46]} 31. Re3 {[%emt 0:00:09]} Nd5 {[%emt 0:07:00]} 32. Rf3+ {[%emt 0:00:04]} Ke7 {[%emt 0:00:04]} 33. bxc4 {[%emt 0:01:20]} Nb6 {[%emt 0:00:41]} 34. Kf1 {[%emt 0:02:49]} Nxc4 {[%emt 0:02:16]} 35. Ke2 {[%emt 0:00:06]} Rb8 {[%emt 0:05:09]} 36. Bb3 {[%emt 0:01:06]} Na5 {[%emt 0:00:03]} 37. c4 {[%emt 0:00:53]} Nb7 {[%emt 0:00:21]} 38. Kd3 {[%emt 0:02:23]} e5 {[%emt 0:02:09]} 39. Re3 {[%emt 0:02:31]} f6 {[%emt 0:02:54]} 40. Kc3 {[%emt 0:00:07]} Nc5 {[%emt 0:00:07]} 41. Bc2 {[%emt 0:00:58]} Ne6 {[%emt 0:04:39]} 42. h4 {[%emt 0:00:52]} Kd6 {[%emt 0:00:31]} 43. g4 {[%emt 0:06:53]} Nf4 {[%emt 0:01:13]} 44. Re1 {[%emt 0:00:52]} Rb7 {[%emt 0:00:15]} 45. Be4 {[%emt 0:00:45]} Rc7 {[%emt 0:00:10]} 46. Rd1+ {[%emt 0:00:53]} Ke6 {[%emt 0:03:38]} 47. Bd5+ {[%emt 0:05:18]} Ke7 {[%emt 0:00:10]} 48. Be4 {[%emt 0:01:59]} Ne2+ {[%emt 0:01:56]} 49. Kd3 {[%emt 0:01:19]} Nf4+ {[%emt 0:03:44]} 50. Kc3 {[%emt 0:00:07]} h5 {[%emt 0:01:04]} 51. gxh5 {[%emt 0:03:19]} f5 {[%emt 0:00:06]} 52. Bd5 {[%emt 0:00:04]} Nxh5 {[%emt 0:00:05]} 53. Kb4 {[%emt 0:00:08]} Nf4 {[%emt 0:00:34]} 54. f3 {[%emt 0:05:52]} Kf6 {[%emt 0:03:54]} 55. c5 {[%emt 0:01:20]} Ng2 {[%emt 0:00:06]} 56. Rd2 {[%emt 0:01:44]} Nxh4 {[%emt 0:00:46]} 57. c6 {[%emt 0:00:03]} Nxf3 {[%emt 0:07:37]} 58. Bxf3 {[%emt 0:01:23]} e4 {[%emt 0:00:01]} 59. Bxe4 {[%emt 0:00:35]} fxe4 {[%emt 0:00:01]} 60. Kc5 {[%emt 0:00:07]} Rc8 {[%emt 0:00:39]} 61. Rd6+ {[%emt 0:03:03]} Kf5 {[%emt 0:00:07]} 62. Rd7 {[%emt 0:00:06]} g5 {[%emt 0:00:34]} 63. c7 {[%emt 0:01:19]} e3 {[%emt 0:00:15]} 64. Re7 {[%emt 0:00:22]} g4 {[%emt 0:00:37]} 65. Kc6 {[%emt 0:02:35]} Kf4 {[%emt 0:00:07]} 66. a4 {[%emt 0:00:51]} g3 {[%emt 0:00:11]} 67. a5 {[%emt 0:01:19]} g2 {[%emt 0:00:17]} 68. Rf7+ {[%emt 0:00:40]} Ke5 {[%emt 0:01:09]} 69. Rg7 {[%emt 0:00:22]} e2 {[%emt 0:00:10]} 70. Kd7 {[%emt 0:00:39]} Rxc7+ {[%emt 0:01:26]} 71. Kxc7 {[%emt 0:00:02]} Kf6 {[%emt 0:00:07]} 72. Rxg2 {[%emt 0:00:07]} e1=Q {[%emt 0:00:04]} 0-1

[Event "26th Triest Festival 2024"]
[Site "Triest"]
[Date "2024.09.02"]
[Round "2.4"]
[White "Valsecchi, Alessio"]
[Black "Leszko, Bence"]
[Result "0-1"]
[Annotator "RC"]
[ECO "B22"]
[WhiteElo "2475"]
[BlackElo "2243"]
[PlyCount "56"]
[EventDate "2024.09.02"]
[EventType "swiss"]
[EventCountry "ITA"]
[SourceTitle "playchess.com"]
[Source "ChessBase"]
[SourceQuality "1"]
[TimeControl "5400+30"]

1. e4 {[%emt 1:31:00]} c5 {[%emt 0:05:24]} 2. Nf3 {[%emt 0:00:00]} e6 {[%emt 0:00:10]} 3. c3 {[%emt 0:00:00]} Nf6 {[%emt 0:00:08]} 4. e5 {[%emt 0:00:00]} Nd5 {[%emt 0:00:09]} 5. Na3 {[%emt 0:00:00]} d6 {[%emt 0:02:40]} 6. Bb5+ {[%emt 0:00:00]} Bd7 {[%emt 0:01:33]} 7. O-O {[%emt 0:00:00]} Bxb5 {[%emt 0:09:05]} 8. Nxb5 {[%emt 0:00:00]} a6 {[%emt 0:00:06]} 9. Nxd6+ {[%emt 0:00:00]} Bxd6 {[%emt 0:00:09]} 10. exd6 {[%emt 0:00:00]} Qxd6 {[%emt 0:00:09]} 11. d4 {[%emt 0:00:00]} cxd4 {[%emt 0:00:21]} 12. Qxd4 {[%emt 0:00:00]} Nc6 {[%emt 0:07:17]} 13. Qxg7 {[%emt 0:00:00]} O-O-O {[%emt 0:00:02]} 14. Qg3 {[%emt 0:00:00]} e5 {[%emt 0:00:59]} 15. c4 {[%emt 0:00:00]} Nde7 {[%emt 0:03:14]} 16. Bg5 {[%emt 0:00:00]} f6 {[%emt 0:03:53]} 17. Qh3+ {[%emt 0:00:00]} Kb8 {[%emt 0:00:05]} 18. c5 {[%emt 0:00:00]} Qd3 {[%emt 0:02:44]} 19. Bxf6 {[%emt 0:00:00]} Rhg8 {[%emt 0:00:14]} 20. Rae1 {[%emt 0:00:00]} Nd5 {[%emt 0:14:19]} 21. Bg5 {[%emt 0:00:00]} Nd4 {[%emt 0:28:35]} 22. Rxe5 {[%emt 0:00:00]} Nf4 {[%emt 0:07:21]} 23. Qg3 {[%emt 0:00:00]} Nxf3+ {[%emt 0:00:02]} 24. Qxf3 {[%emt 0:00:00]} Qxf3 {[%emt 0:00:44]} 25. gxf3 {[%emt 0:00:00]} Nh3+ {[%emt 0:00:21]} 26. Kh1 {[%emt 0:00:00]} Nxg5 {[%emt 0:00:10]} 27. f4 {[%emt 0:00:00]} Nh3 {[%emt 0:00:21]} 28. Re2 {[%emt 0:00:00]} Rg7 {[%emt 0:00:29]} 0-1